bitfinex/quotes_ETHUSD_20220109
["timestamp","ask_amount","ask_price","bid_price","bid_amount"]
[1641735571040,10.65789832,3100.8,3100.6,0.00113684]
[1641735571041,0.41113473,3100.7,3100.6,0.00113684]
[1641735571440,0.80701,3100.1,3099.6,0.94472277]
[1641735571641,1.61402,3100.0,3099.6,0.94472277]
[1641735571843,0.80701,3100.0,3099.6,0.94472277]
[1641735572040,0.80701,3100.0,3099.7,0.72955029]
[1641735572441,0.80701,3100.0,3099.8,0.00454739]
[1641735572442,2.42116,3100.0,3099.8,0.00454739]
[1641735572841,4.0350966,3099.9,3099.8,0.00454739]
[1641735573041,1.10299326,3099.9,3099.8,0.00454739]
[1641735573697,0.80696,3100.0,3099.8,0.00454739]
[1641735574094,0.80696,3100.0,3099.3,0.39684555]
[1641735574291,1.29167676,3099.9,3099.3,0.39684555]
[1641735574494,1.29167676,3099.9,3099.4,0.0022737]
[1641735574692,1.29167676,3099.9,3099.5,0.73469876]
[1641735575091,1.29167676,3099.9,3099.6,0.00113685]
[1641735576999,1.29167676,3099.9,3099.7,0.08064]
[1641735577938,2.43328923,3100.5,3099.8,12.86504198]
[1641735578138,0.81869328,3100.5,3100.4,0.69226496]
[1641735578739,0.08062,3101.7,3100.4,20.24442796]
[1641735578938,0.80645,3101.7,3100.6,0.80644]
[1641735579142,0.00568423,3100.8,3100.5,2.169843]
[1641735579438,0.00511581,3100.7,3100.4,18.07458496]
[1641735579740,0.00454739,3100.6,3100.5,1.3254504]
[1641735580139,0.00454739,3100.6,3100.5,5.44620051]
[1641735580739,0.00454739,3100.6,3100.5,9.19620051]
[1641735580940,0.00454739,3100.6,3100.5,5.44620051]
[1641735581190,0.00454739,3100.6,3100.5,3.2996437]
[1641735581387,0.00454739,3100.6,3100.5,1.3254504]
[1641735581586,0.00454739,3100.6,3100.5,10.9754504]
[1641735582086,0.00454739,3100.6,3100.5,12.20617792]
[1641735582785,0.00454739,3100.6,3100.5,10.9754504]
[1641735582987,0.04712067,3101.3,3100.6,12.65]
[1641735583187,2.5003263,3101.5,3100.6,0.08061]
[1641735583388,0.80947231,3101.1,3100.2,2.25530848]
[1641735583588,0.00284211,3101.1,3100.5,1.23062615]
[1641735583788,0.00227369,3101.0,3100.5,1.23062615]
[1641735584187,0.80669,3100.8,3100.5,1.23062615]
[1641735584589,0.08061,3100.7,3100.5,1.23062615]
[1641735584789,0.08061,3100.7,3100.3,0.00170527]
[1641735584790,0.08061,3100.7,3100.3,1.23233142]
[1641735585043,0.08062,3100.8,3100.3,1.23233142]
[1641735585239,0.08062,3100.8,3100.4,0.00113685]
[1641735585437,0.08175684,3100.8,3100.4,0.00113685]
[1641735585639,0.80675,3100.7,3100.4,0.00113685]
[1641735585938,0.80675,3100.7,3100.5,0.80233334]
[1641735585939,0.88737,3100.6,3100.5,0.80233334]
[1641735586139,0.08062,3100.7,3100.5,0.80233334]
[1641735586941,0.80665,3100.9,3100.6,8.65]
[1641735587240,0.80668,3100.8,3100.6,0.00113685]
[1641735587642,0.80668,3100.8,3100.4,0.00227369]
[1641735588700,0.88724,3101.0,3100.5,0.73824247]
[1641735588891,0.88724,3101.0,3100.8,1.27809661]
[1641735589693,0.08062,3101.0,3100.8,1.27809661]
[1641735589893,0.00170527,3101.1,3100.8,1.27809661]
[1641735590296,0.00113685,3101.0,3100.8,2.11599661]
[1641735590693,0.08061,3101.7,3100.8,2.11599661]
[1641735590694,0.8065,3101.4,3100.8,2.11599661]
[1641735591093,0.00284212,3101.3,3100.8,2.11599661]
[1641735591294,0.00284212,3101.3,3101.1,0.76993861]
[1641735591497,0.08061,3101.7,3101.1,0.76993861]
[1641735591498,0.0022737,3101.2,3101.1,0.76993861]
[1641735592092,0.0022737,3101.2,3101.1,3.51762824]
[1641735592856,0.0022737,3101.2,3101.1,2.74768963]
[1641735593453,0.8020026,3101.3,3101.1,2.74768963]
[1641735593653,1.6891935,3101.3,3101.1,2.74768963]
[1641735594056,1.6891935,3101.3,3100.9,3.45606198]
[1641735594254,0.80664,3101.1,3100.9,3.45606198]
[1641735594454,0.80664,3101.1,3101.0,0.00113684]
[1641735594854,0.80664,3101.1,3101.0,2.74882647]
[1641735595056,1.6132728,3101.1,3101.0,2.74882647]
[1641735595458,1.6132728,3101.1,3101.0,0.00113684]
[1641735595655,0.80664,3101.2,3101.0,0.00113684]
[1641735595656,1.69372,3101.3,3101.0,0.00113684]
[1641735595855,2.41975,3101.4,3100.9,1.04820527]
[1641735595856,0.0806,3101.4,3100.9,1.04820527]
[1641735596056,1.29096806,3101.6,3100.9,1.04820527]
[1641735596304,1.29096806,3101.6,3101.0,0.08173685]
[1641735596500,0.00170527,3101.5,3101.0,0.08173685]
[1641735596700,0.00170527,3101.5,3101.0,2.82942648]
[1641735596898,0.00113684,3101.4,3101.0,2.82942648]
[1641735597498,0.00113684,3101.4,3101.1,2.74768963]
[1641735597699,0.00113684,3101.4,3101.2,0.62952898]
[1641735598698,0.00113684,3101.4,3101.3,9.59768963]
[1641735598900,0.00113684,3101.4,3101.3,3.91675142]
[1641735601146,0.00113684,3101.4,3101.3,3.99735142]
[1641735605991,0.00113684,3101.4,3101.3,3.91675142]
[1641735606392,0.00113684,3101.4,3101.3,7.86675142]
[1641735607096,0.00113684,3101.4,3101.3,7.94735142]
[1641735607296,0.00113684,3101.4,3101.3,33.77735142]
[1641735607537,3.684e-05,3101.4,3101.3,33.77735142]
[1641735608436,3.684e-05,3101.4,3101.3,40.37735142]
[1641735608637,3.684e-05,3101.4,3101.3,44.49810153]
[1641735608837,0.01168728,3102.0,3101.3,39.19810153]
[1641735609041,0.01168728,3102.0,3101.5,1.6121324]
[1641735609239,0.00284212,3101.9,3101.6,19.63607]
[1641735609438,0.00284212,3101.9,3101.6,21.01707]
[1641735609639,0.0022737,3101.8,3101.7,17.10292726]
[1641735610340,0.0022737,3101.8,3101.7,25.19864638]
[1641735610545,0.0022737,3101.8,3101.7,44.83472638]
[1641735610745,1.29057237,3102.5,3102.2,6.22450559]
[1641735610941,1.29057237,3102.5,3102.3,19.88026]
[1641735611197,1.29057237,3102.5,3102.3,20.72176]
[1641735611392,0.08057,3103.8,3102.5,36.37057237]
[1641735611692,0.0073895,3103.1,3102.6,0.08057]
[1641735611890,0.0073895,3103.1,3102.8,1.2466876]
[1641735612090,0.80588,3103.9,3102.8,1.2466876]
[1641735612091,0.00682108,3103.0,3102.8,1.3272476]
[1641735612493,0.00625266,3102.9,3102.8,1.3272476]
[1641735612693,0.00625266,3102.9,3102.8,1.2466876]
[1641735613397,0.00625266,3102.9,3102.8,36.3266876]
[1641735613593,0.00625266,3102.9,3102.8,40.3049876]
[1641735613794,5.266e-05,3102.9,3102.8,41.6049876]
[1641735613993,5.266e-05,3102.9,3102.8,40.6583]
[1641735614192,5.266e-05,3102.9,3102.8,40.921]
[1641735614394,1.28998968,3104.0,3102.8,40.921]
[1641735614596,1.28998968,3104.0,3103.3,21.24698]
[1641735614794,0.00568423,3103.9,3103.4,2.08215575]
[1641735615042,1.28998968,3104.0,3103.7,16.25]
[1641735615043,0.00577391,3104.0,3103.7,16.25]
[1641735615241,6.16,3104.5,3103.8,2.88030124]
[1641735615441,6.16,3104.5,3103.9,18.83]
[1641735615642,26.18523,3105.8,3104.4,0.01244667]
[1641735615844,26.18523,3105.8,3105.1,0.1928]
[1641735615845,4.8176,3105.5,3105.1,0.1928]
[1641735616044,0.31888452,3105.5,3105.2,16.3305]
[1641735616239,0.06,3105.9,3105.3,16.25]
[1641735616439,0.06,3105.9,3105.4,0.08049]
[1641735616639,0.0073895,3105.7,3105.4,0.77698027]
[1641735616839,0.0073895,3105.7,3105.5,17.23030657]
[1641735617040,0.00682108,3105.6,3105.5,17.23030657]
[1641735617241,0.00682108,3105.6,3105.5,24.70225207]
[1641735617440,7.1015748,3106.2,3105.7,17.23030657]
[1641735617642,0.1105,3106.9,3105.9,33.48030657]
[1641735617643,0.03,3106.9,3105.9,33.48030657]
[1641735617843,0.03,3106.9,3106.1,17.23030657]
[1641735618042,0.08047,3107.4,3106.4,0.012067]
[1641735618241,0.03,3107.7,3106.4,0.012067]
[1641735618441,0.03,3107.7,3106.5,1.26010914]
[1641735618442,0.00682108,3106.8,3106.5,1.26010914]
[1641735619002,0.00625266,3106.7,3106.5,2.07148256]
[1641735619202,0.00625266,3106.7,3106.3,0.08046]
[1641735619402,0.08614423,3106.6,3106.1,4.11470054]
[1641735619702,0.00511581,3106.5,3106.1,4.11470054]
[1641735620107,9.31048297,3106.2,3106.1,4.11470054]
[1641735620305,0.61048297,3106.2,3105.7,4.11470054]
[1641735620604,0.00284212,3106.1,3105.7,4.11470054]
[1641735621004,0.00227369,3106.0,3105.7,7.31470054]
[1641735621206,0.07114,3106.1,3105.7,3.2]
[1641735621402,0.07114,3106.1,3105.8,0.00113684]
[1641735621604,16.33027422,3106.0,3105.1,2.46154665]
[1641735621803,16.33027422,3106.0,3104.9,4.74129695]
[1641735621804,0.07115,3105.9,3104.9,4.74129695]
[1641735622103,0.07115,3105.9,3105.2,0.00341055]
[1641735622544,0.72920808,3105.8,3105.4,0.76526715]
[1641735622744,0.00113684,3106.0,3105.4,0.76526715]
[1641735622745,0.07115,3105.7,3105.4,0.76526715]
[1641735622942,0.00113684,3106.0,3105.5,0.00170527]
[1641735622943,0.07115,3105.9,3105.5,0.00170527]
[1641735624145,1.14327124,3106.5,3105.6,5.15]
[1641735624344,1.14327124,3106.5,3105.5,0.00284211]
[1641735624543,0.00113685,3106.2,3105.7,0.00170527]
[1641735624743,0.00113685,3106.2,3105.5,0.00284211]
[1641735625144,0.00113685,3106.2,3105.1,0.00511581]
[1641735625345,0.00113685,3106.2,3105.0,0.00568423]
[1641735625744,54.46680597,3106.0,3105.0,0.00568423]
[1641735625943,54.46680597,3106.0,3105.0,0.75126861]
[1641735625944,0.67490176,3105.6,3105.0,0.75126861]
[1641735626399,54.46680597,3106.0,3105.1,0.00511581]
[1641735626597,1.0,3105.9,3105.1,0.00511581]
[1641735626796,0.08046,3105.8,3105.1,0.00511581]
[1641735626996,0.08046,3105.9,3105.1,0.00511581]
[1641735627396,52.90074624,3106.0,3105.2,5.5]
[1641735627599,53.20074624,3106.0,3105.2,5.5]
[1641735627795,1.0,3105.9,3105.3,0.00397896]
[1641735628195,54.00616624,3106.0,3104.9,0.00625266]
[1641735628196,53.70616624,3106.0,3104.9,0.00625266]
[1641735628398,2.11194685,3106.2,3105.4,0.01285677]
[1641735628399,0.00113685,3106.2,3105.4,0.01285677]
[1641735628599,0.00113685,3106.2,3105.7,1.29886424]
[1641735629000,0.00113685,3106.2,3105.8,0.00113684]
[1641735629795,0.00113685,3106.2,3105.8,2.74535204]
[1641735630041,0.00113685,3106.2,3105.9,0.84336627]
[1641735630442,1.29019117,3106.2,3105.9,0.84336627]
[1641735630640,1.29019117,3106.2,3106.0,2.21895201]
[1641735630843,0.00113685,3106.2,3106.0,2.21895201]
[1641735631040,0.00113685,3106.2,3106.1,16.33047]
[1641735631440,0.20319997,3107.8,3107.5,0.8349936]
[1641735631644,0.15319997,3107.8,3106.4,11.08883275]
[1641735631841,0.00852635,3107.7,3106.5,3.7728]
[1641735632042,0.00852635,3107.7,3106.5,5.89523356]
[1641735632244,0.00795793,3107.6,3106.5,5.89523356]
[1641735632642,0.15319997,3107.8,3106.5,5.89523356]
[1641735632643,0.0073895,3107.5,3106.5,6.01918879]
[1641735632845,0.0073895,3107.5,3106.7,1.20204675]
[1641735633043,0.00682108,3107.4,3106.7,1.20204675]
[1641735633443,0.00625266,3107.3,3106.6,3.94626195]
[1641735633695,1.28884664,3106.7,3106.6,3.94626195]
[1641735633890,1.28884664,3106.7,3106.6,4.71197937]
[1641735634091,1.29168876,3106.7,3106.6,4.71197937]
[1641735634293,1.29168876,3106.7,3106.6,3.94626195]
[1641735634491,0.00284212,3106.7,3106.6,3.94626195]
[1641735634692,0.15319997,3107.8,3107.6,2.9234343]
[1641735634893,0.15319997,3107.8,3106.6,2.7442152]
[1641735635092,0.00568423,3107.7,3106.7,2.14222751]
[1641735635291,0.00568423,3107.7,3106.8,1.20156663]
[1641735635492,0.61229232,3107.4,3106.9,0.80311738]
[1641735635691,0.61229232,3107.4,3106.8,1.20156663]
[1641735635892,0.00341054,3107.3,3106.8,1.20156663]
[1641735636291,0.00284211,3107.2,3106.8,1.20156663]
[1641735636492,1.95818997,3107.8,3106.9,1.20156663]
[1641735636894,0.00284212,3107.7,3107.0,0.00113684]
[1641735637291,0.0022737,3107.6,3107.0,0.00113684]
[1641735637739,0.00170527,3107.5,3107.0,0.00113684]
[1641735637942,1.28861828,3107.3,3107.0,0.00113684]
[1641735638139,0.3,3107.2,3107.0,0.00113684]
[1641735638740,0.84068019,3107.1,3107.0,0.00113684]
[1641735638943,0.84068019,3107.1,3106.6,0.00341054]
[1641735638944,1.14068019,3107.1,3106.6,0.00341054]
[1641735639140,1.94585019,3107.1,3106.6,0.00341054]
[1641735639543,0.94998381,3107.3,3106.6,1.20497717]
[1641735639739,1.0,3107.1,3106.6,1.20497717]
[1641735639940,0.94998381,3107.3,3106.7,0.00284211]
[1641735640141,0.75838796,3107.2,3106.7,0.00284211]
[1641735640644,0.75838796,3107.2,3106.6,0.00341054]
[1641735640645,1.61051,3107.0,3106.6,0.00341054]
[1641735640841,1.61051,3107.0,3106.6,3.20341054]
[1641735640842,3.00345509,3106.9,3106.6,3.20341054]
[1641735641040,3.08372931,3106.9,3106.6,3.20341054]
[1641735641299,1.08027422,3106.8,3106.7,0.00284211]
[1641735641496,1.38027422,3106.8,3106.7,0.00284211]
[1641735641993,1.38027422,3106.8,3106.7,2.74609627]
[1641735641994,17.48509157,3106.8,3106.7,2.74609627]
[1641735642196,18.48509157,3106.8,3106.7,2.74609627]
[1641735642393,14.0,3106.6,3106.1,0.62857204]
[1641735642595,8.07425912,3106.5,3106.1,0.62857204]
[1641735642792,17.37862455,3106.4,3106.2,4.212e-05]
[1641735642995,17.37862455,3106.4,3105.6,2.40409349]
[1641735642996,17.70032988,3106.3,3105.6,2.40409349]
[1641735643296,0.8182054,3106.0,3105.7,0.00284212]
[1641735643595,1.10576,3105.9,3105.7,0.00284212]
[1641735643996,2.10576,3105.9,3105.7,0.00284212]
[1641735644194,2.10576,3105.9,3105.0,0.00682108]
[1641735644394,0.805518,3105.6,3105.4,0.00454739]
[1641735644594,0.805518,3105.6,3104.9,2.40409349]
[1641735644595,1.0,3105.9,3105.0,0.00682108]
[1641735644801,0.00113685,3106.4,3105.4,0.01205146]
[1641735645045,0.00113685,3106.4,3105.3,0.691]
[1641735645243,0.00113685,3106.4,3105.5,0.00397896]
[1641735645444,0.00113685,3106.4,3105.0,4.02444381]
[1641735645647,1.28895047,3106.5,3105.4,1.28238171]
[1641735645844,0.00397896,3106.3,3106.0,0.64296371]
[1641735646245,0.00341054,3106.2,3106.0,0.64296371]
[1641735646745,0.00284212,3106.1,3106.0,0.64296371]
[1641735647355,0.00284212,3106.1,3105.6,3.602]
[1641735647548,0.00284212,3106.1,3105.4,4.11470054]
[1641735647749,0.00227369,3106.0,3105.4,4.11470054]
[1641735648147,0.00170527,3105.9,3105.4,4.11470054]
[1641735648347,0.00170527,3105.9,3105.6,0.76998358]
[1641735648547,2.4054,3106.1,3105.6,0.76998358]
[1641735648548,0.00113685,3105.8,3105.6,0.76998358]
[1641735648791,0.00113685,3105.8,3105.4,4.11470054]
[1641735648991,0.00227369,3106.0,3105.1,7.38707752]
[1641735649391,0.00170527,3105.9,3105.2,0.0022737]
[1641735649693,0.00113685,3105.8,3105.2,0.0022737]
[1641735649896,0.00113685,3105.8,3105.3,0.7991194]
[1641735650094,0.00227369,3106.0,3105.3,0.7991194]
[1641735650294,0.00227369,3106.0,3105.4,0.00113685]
[1641735650596,0.00170527,3105.9,3105.4,0.00113685]
[1641735650994,0.00113685,3105.8,3105.4,0.00113685]
[1641735651396,0.00227369,3106.0,3105.4,0.00113685]
[1641735651796,0.00170527,3105.9,3105.4,2.70113685]
[1641735652197,0.00113685,3105.8,3105.4,2.70113685]
[1641735652446,41.93189017,3105.6,3105.4,2.70113685]
[1641735655244,37.54159717,3105.6,3105.4,2.70113685]
[1641735655847,31.687853,3105.6,3105.4,2.70113685]
[1641735656501,31.687853,3105.6,3105.5,2.43750984]
[1641735656694,28.76088773,3105.6,3105.5,2.43750984]
[1641735657096,28.76088773,3105.6,3105.4,2.70113685]
[1641735657296,1.0,3105.5,3105.4,2.70113685]
[1641735657496,1.3,3105.5,3105.4,2.70113685]
[1641735657897,8.25,3105.5,3105.4,2.63713685]
[1641735658196,1.6,3105.5,3105.4,2.63713685]
[1641735658495,3.21135,3105.5,3105.4,2.63713685]
[1641735658699,3.29185,3105.5,3105.4,2.63713685]
[1641735660747,6.79185,3105.5,3105.4,2.63713685]
[1641735660947,3.29185,3105.5,3105.4,2.63713685]
[1641735662954,3.29185,3105.5,3105.4,5.38151222]
[1641735664193,3.21135,3105.5,3105.4,5.38151222]
[1641735667296,8.21135,3105.5,3105.4,3.93151222]
[1641735667551,1.61139579,3106.7,3106.1,2.50572607]
[1641735667753,0.48003282,3107.8,3106.1,2.50572607]
[1641735667754,0.48003282,3107.8,3106.8,0.64005887]
[1641735667952,1.606,3108.4,3106.9,2.4045366]
[1641735667953,11.4025,3107.5,3106.9,2.4045366]
[1641735668350,11.4025,3107.5,3107.4,1.37188185]
[1641735668550,11.4025,3107.5,3107.4,3.68386279]
[1641735668749,11.4121632,3107.5,3107.4,2.25696185]
[1641735669148,11.4121632,3107.5,3107.4,1.45232185]
[1641735669349,11.4121632,3107.5,3107.4,0.08044]
[1641735669550,11.4121632,3107.5,3107.2,0.08044]
[1641735669949,0.00909478,3107.4,3107.0,2.74437537]
[1641735670350,1.14539453,3107.3,3107.0,2.74437537]
[1641735670550,1.14539453,3107.3,3106.8,0.69005886]
[1641735670754,0.75841045,3107.2,3106.8,0.69005886]
[1641735670954,0.00795793,3107.2,3106.8,0.69005886]
[1641735671232,1.13686817,3107.3,3106.8,0.69005886]
[1641735671233,0.00738951,3107.1,3106.8,0.69005886]
[1641735671406,0.00738951,3107.1,3107.0,8.45]
[1641735671606,1.61008,3107.7,3107.0,8.45]
[1641735672006,0.00795793,3107.2,3107.0,2.7]
[1641735672306,0.00738951,3107.1,3106.8,0.69005886]
[1641735672707,0.00682109,3107.0,3106.8,0.69005886]
[1641735673107,0.00625266,3106.9,3106.8,0.69005886]
[1641735673709,0.00625266,3106.9,3106.8,8.89005886]
[1641735674610,0.00625266,3106.9,3106.8,4.19005886]
[1641735675252,0.00625266,3106.9,3106.8,0.69005886]
[1641735676654,0.00625266,3106.9,3106.8,5.09005886]
[1641735676852,0.80502,3107.6,3106.9,13.45]
[1641735677052,0.80501,3107.9,3106.9,13.45]
[1641735677252,0.00341054,3107.5,3106.9,13.45]
[1641735677653,0.00284212,3107.4,3106.8,0.69005886]
[1641735678054,0.77515106,3107.6,3106.8,0.69005886]
[1641735678055,0.0022737,3107.3,3106.8,0.69005886]
[1641735678456,0.00170527,3107.2,3106.8,0.69005886]
[1641735678903,0.00113685,3107.1,3106.8,0.69005886]
[1641735680205,0.00113685,3107.1,3106.8,0.64005887]
[1641735680206,2.62387913,3107.1,3106.8,0.64005887]
[1641735680405,0.08141107,3107.1,3106.8,0.64005887]
[1641735680604,0.88670337,3107.1,3106.8,0.64005887]
[1641735680804,2.4157869,3107.0,3106.8,0.64005887]
[1641735681007,0.3,3106.9,3106.8,0.64005887]
[1641735681205,11.47984878,3106.9,3106.8,0.64005887]
[1641735681408,12.47984878,3106.9,3106.8,0.64005887]
[1641735681803,2.12984878,3106.9,3106.8,1.84005887]
[1641735682005,2.93514258,3106.9,3106.8,1.84005887]
[1641735683043,2.92390617,3106.9,3106.8,1.84005887]
[1641735683243,7.17390617,3106.9,3106.8,0.39005887]
[1641735683444,2.92390617,3106.9,3106.8,0.39005887]
[1641735683648,2.11861237,3106.9,3106.8,0.39005887]
[1641735684045,3.41861237,3106.9,3106.8,0.39005887]
[1641735684246,2.41861237,3106.9,3106.8,0.32605887]
[1641735684447,3.41861237,3106.9,3106.8,0.32605887]
[1641735684647,2.11861237,3106.9,3106.8,0.32605887]
[1641735685547,2.41861237,3106.9,3106.8,0.32605887]
[1641735685950,1.28876359,3106.9,3106.8,0.32605887]
[1641735686592,1.28876359,3106.9,3106.8,10.42605887]
[1641735686994,1.28876359,3106.9,3106.8,11.23548883]
[1641735687794,1.28876359,3106.9,3106.8,14.80644533]
[1641735688094,0.00113685,3107.1,3106.8,14.80644533]
[1641735688302,0.00113685,3107.1,3106.8,14.88690533]
[1641735689093,0.00113685,3107.1,3106.9,1.02978626]
[1641735689295,0.00113685,3107.1,3107.0,16.33046]
[1641735689493,3.685e-05,3107.1,3107.0,16.33046]
[1641735689693,0.00113685,3107.1,3107.0,17.33046]
[1641735690649,0.00113685,3107.1,3107.0,20.0730165]
[1641735690850,0.00113685,3107.1,3107.0,21.82455609]
[1641735691051,3.685e-05,3107.1,3107.0,20.0730165]
[1641735691266,2.87441017,3109.0,3107.0,44.67364807]
[1641735691454,2.87441017,3109.0,3107.7,0.01271698]
[1641735691655,2.87441017,3109.0,3108.3,16.25]
[1641735691656,1.37216828,3109.0,3108.3,16.25]
[1641735691851,6.91,3110.5,3109.0,1.37216828]
[1641735691852,11.4025,3110.4,3109.0,1.37216828]
[1641735692053,11.4025,3110.4,3110.2,0.66961028]
[1641735692252,11.4025,3110.4,3110.2,1.77371028]
[1641735692452,6.91,3110.5,3110.2,1.77371028]
[1641735692652,0.03,3111.2,3110.2,1.77371028]
[1641735692653,0.80414,3111.1,3110.2,4.0838285]
[1641735692853,11.44515502,3111.7,3110.2,4.0838285]
[1641735692854,11.4325,3111.7,3110.4,10.95]
[1641735693054,0.03,3111.7,3110.3,0.08035]
[1641735693250,1.36605,3110.9,3110.3,0.08035]
[1641735693450,1.36605,3110.9,3109.9,0.08036]
[1641735693722,0.00227369,3110.8,3110.1,1.0713908]
[1641735694018,0.77273064,3111.5,3109.8,0.7810757]
[1641735694019,0.00170527,3110.7,3109.8,0.7810757]
[1641735694215,1.93179099,3110.6,3110.1,0.74952794]
[1641735694414,1.93179099,3110.6,3109.9,0.00170527]
[1641735694415,0.08036,3110.5,3109.9,0.00170527]
[1641735694616,0.08206527,3110.5,3109.9,0.00170527]
[1641735694815,0.80443,3110.1,3109.8,0.0022737]
[1641735695115,1.29750631,3110.0,3109.3,0.00511581]
[1641735695315,0.08037,3110.3,3110.2,0.76812149]
[1641735695614,0.08206527,3110.5,3110.2,0.76812149]
[1641735695816,0.08206527,3110.5,3110.2,0.70412149]
[1641735696015,0.08206527,3110.5,3109.4,1.22704231]
[1641735696016,0.00113685,3110.4,3109.4,1.22704231]
[1641735696214,0.00113685,3110.4,3109.3,0.00511581]
[1641735696415,0.00113685,3110.4,3109.5,0.00397897]
[1641735696618,0.00113685,3110.4,3109.3,0.00511581]
[1641735696815,0.08037,3110.3,3109.3,0.00511581]
[1641735697015,2.62119053,3110.5,3109.8,4.15]
[1641735697216,0.6,3110.5,3109.8,4.15]
[1641735697441,0.3,3110.5,3109.9,0.00284212]
[1641735697745,1.01189303,3110.0,3109.9,0.00284212]
[1641735697944,0.80429,3110.6,3109.9,0.00284212]
[1641735698144,0.70525148,3110.4,3109.8,0.00341055]
[1641735698443,1.80962878,3110.4,3109.8,0.00341055]
[1641735698944,1.16313986,3109.9,3109.5,0.00511582]
[1641735699743,0.80438,3110.3,3109.5,0.00511582]
[1641735699943,1.10435,3110.4,3109.6,2.74084222]
[1641735700146,0.80435,3110.4,3109.6,2.74084222]
[1641735700344,0.80435,3110.4,3109.7,0.00397897]
[1641735700744,0.80435,3110.4,3110.0,0.6909797]
[1641735700945,1.27515506,3110.1,3110.0,0.6909797]
[1641735701392,1.27515506,3110.1,3109.3,2.74084222]
[1641735701592,0.80435,3110.4,3109.3,2.74084222]
[1641735701797,0.80435,3110.4,3109.4,0.00568424]
[1641735701992,1.40435,3110.4,3109.4,0.00568424]
[1641735702396,0.68734776,3110.3,3109.5,0.74160346]
[1641735702593,0.68734776,3110.3,3109.4,2.74643873]
[1641735702594,1.6087778,3110.2,3109.4,2.74643873]
[1641735702794,5.0481781,3110.1,3109.6,0.00454739]
[1641735703094,0.00113684,3110.6,3109.6,2.74075449]
[1641735703497,1.41696239,3110.5,3109.6,2.59859344]
[1641735703697,1.41696239,3110.5,3109.4,1.22628833]
[1641735703698,1.42150978,3110.5,3109.4,1.22628833]
[1641735703896,0.00397897,3110.4,3109.5,1.22704231]
[1641735704095,0.00397897,3110.4,3109.5,1.22817916]
[1641735704299,1.41696239,3110.5,3109.5,1.22817916]
[1641735704300,0.00341054,3110.3,3109.5,1.22817916]
[1641735704796,0.00284212,3110.2,3109.5,0.00113685]
[1641735705249,1.20934177,3109.7,3109.5,0.64850224]
[1641735707050,0.00227369,3110.1,3109.6,11.55]
[1641735707251,0.00227369,3110.1,3109.5,0.64850224]
[1641735707451,1.47585106,3110.2,3109.5,0.64850224]
[1641735707452,0.00170527,3110.0,3109.5,0.64850224]
[1641735707850,1.39461607,3109.7,3109.5,0.64850224]
[1641735708050,1.13746389,3109.8,3109.6,5.8]
[1641735708250,1.13746389,3109.8,3109.5,0.64850224]
[1641735708451,1.13746389,3109.8,3109.7,5.00113685]
[1641735708710,1.13746389,3109.8,3109.7,5.0]
[1641735708895,1.13746389,3109.8,3109.7,0.00113685]
[1641735709098,1.28722908,3110.6,3109.7,0.00113685]
[1641735709299,1.28722908,3110.6,3109.6,2.22549105]
[1641735709300,1.28722908,3110.6,3109.6,2.30758632]
[1641735709502,0.00170527,3110.2,3109.8,0.08037]
[1641735709699,0.00170527,3110.2,3109.7,0.08150685]
[1641735709998,0.00113684,3110.1,3109.7,0.00113685]
[1641735710200,1.4153441,3110.0,3109.7,0.00113685]
[1641735710399,1.4153441,3110.0,3109.7,2.4456497]
[1641735710598,1.41099557,3110.0,3109.7,2.4456497]
[1641735711201,1.41099557,3110.0,3109.7,0.00113685]
[1641735712454,1.41099557,3110.0,3109.5,0.72270655]
[1641735712656,0.00113685,3109.9,3109.5,0.72270655]
[1641735713555,0.00113685,3109.9,3109.6,2.11961763]
[1641735713756,0.00113685,3109.9,3109.6,2.15832192]
[1641735713956,0.00113685,3109.9,3109.5,0.72270655]
[1641735714858,0.00113685,3109.9,3109.0,1.37216828]
[1641735715061,0.80562005,3109.9,3109.0,1.37216828]
[1641735715357,1.6350332,3110.2,3109.2,6.3]
[1641735715358,0.84370665,3110.2,3109.2,6.3]
[1641735715557,0.54370665,3110.2,3109.1,0.00454739]
[1641735715757,1.34675717,3109.5,3109.3,0.00341054]
[1641735715958,1.34675717,3109.5,3109.1,0.00454739]
[1641735717396,43.0293211,3109.7,3109.1,0.00454739]
[1641735717596,1.30148075,3109.4,3109.1,0.00454739]
[1641735718196,0.08036,3109.8,3109.2,5.6]
[1641735718595,1.28246324,3109.8,3109.3,0.00341054]
[1641735719295,1.28246324,3109.8,3109.3,0.81081685]
[1641735719696,1.28246324,3109.8,3109.4,0.00284212]
[1641735719949,50.07476547,3109.7,3109.4,0.00284212]
[1641735720554,50.07476547,3109.7,3109.1,0.00454739]
[1641735720747,1.28246324,3109.8,3109.1,0.00454739]
[1641735721151,2.03501752,3109.8,3109.1,0.00454739]
[1641735721351,0.80452,3109.5,3109.1,0.00454739]
[1641735721648,0.08036,3109.4,3109.1,0.00454739]
[1641735721847,1.34002123,3109.3,3109.1,0.00454739]
[1641735722049,0.08035,3109.2,3109.1,0.00454739]
[1641735722250,1.34002123,3109.3,3109.1,0.78050566]
[1641735722452,0.08035,3109.4,3109.1,0.78050566]
[1641735722649,0.08035,3109.4,3109.2,0.00397897]
[1641735722849,0.08035,3109.9,3109.1,0.71593724]
[1641735723050,1.93209772,3110.1,3109.2,2.24613828]
[1641735723250,0.00341054,3109.8,3109.2,2.24613828]
[1641735723450,1.93209772,3110.1,3109.1,1.09632724]
[1641735723451,0.00454739,3110.0,3109.1,1.09632724]
[1641735723708,1.93209772,3110.1,3109.3,2.74057712]
[1641735723709,0.00284212,3109.7,3109.3,2.74057712]
[1641735723999,1.17808466,3110.0,3109.8,0.73059704]
[1641735724397,1.18263205,3110.0,3109.8,0.73059704]
[1641735724597,0.00454739,3110.0,3109.8,0.73059704]
[1641735725001,0.00454739,3110.0,3109.4,3.55131524]
[1641735725204,0.00454739,3110.0,3109.9,2.74057712]
[1641735725803,0.00454739,3110.0,3109.9,1.45297512]
[1641735726000,39.63865597,3110.0,3109.5,1.45297512]
[1641735726399,0.00397897,3109.9,3109.2,4.33912058]
[1641735726601,1.87413454,3109.8,3109.2,0.60452058]
[1641735726901,0.00284212,3109.7,3109.2,0.60452058]
[1641735727301,0.0022737,3109.6,3109.2,0.60452058]
[1641735727850,0.0022737,3109.6,3109.1,0.08039]
[1641735727851,0.80614527,3109.5,3109.1,0.08039]
[1641735728251,0.00113685,3109.4,3109.1,0.08039]
[1641735728651,0.60557685,3109.5,3109.1,0.08039]
[1641735728852,0.80454,3109.3,3109.2,0.00113685]
[1641735729053,2.21461095,3109.5,3109.2,0.00113685]
[1641735729054,0.60557685,3109.5,3109.2,0.00113685]
[1641735729855,0.60557685,3109.5,3109.3,0.84817188]
[1641735730555,2.472382,3109.7,3109.2,0.00113685]